bitfinex/quotes_SOLUSD_20220109
["timestamp","ask_amount","ask_price","bid_price","bid_amount"]
[1641735097835,90.5013,139.34,139.23,11.0249]
[1641735098032,79.7275,139.34,139.23,11.0249]
[1641735098433,27.8743415,139.33,139.23,37.2964177]
[1641735098633,79.7275,139.34,139.23,39.07724356]
[1641735098834,1.78082586,139.38,139.23,39.07724356]
[1641735099034,145.6419,139.39,139.24,75.874]
[1641735099234,156.4124,139.39,139.29,10.7697]
[1641735099434,131.6509,139.39,139.24,75.874]
[1641735099637,22.99467027,139.38,139.25,0.25]
[1641735100034,120.8804,139.39,139.25,2.29082586]
[1641735100335,47.8206,139.39,139.31,10.7686]
[1641735100534,10.7665,139.44,139.31,10.7686]
[1641735100734,20.290382,139.43,139.32,0.25]
[1641735101135,35.4475339,139.42,139.32,0.25]
[1641735101335,24.0364289,139.42,139.32,0.25]
[1641735101562,11.411105,139.41,139.32,0.25]
[1641735101859,11.411105,139.41,139.31,0.25]
[1641735102067,24.0364289,139.42,139.31,0.25]
[1641735102261,34.8036289,139.42,139.33,10.7672]
[1641735102462,27.55654286,139.41,139.29,74.9483]
[1641735102660,1.78082586,139.41,139.25,126.4647]
[1641735102866,124.3549,139.4,139.26,0.25]
[1641735103061,12.162361,139.39,139.26,0.25]
[1641735103261,29.82113191,139.38,139.26,0.25]
[1641735103461,31.60195777,139.38,139.26,0.25]
[1641735103860,29.82113191,139.38,139.26,0.25]
[1641735104663,31.60195777,139.38,139.24,79.7961]
[1641735104863,37.57295777,139.38,139.24,79.7961]
[1641735105062,24.6024,139.37,139.24,79.7961]
[1641735105263,24.6024,139.37,139.2,4.03489955]
[1641735105264,10.7748,139.33,139.23,10.775]
[1641735105463,123.5814,139.35,139.21,105.81023034]
[1641735105664,26.07844972,139.34,139.22,30.0456984]
[1641735105863,26.07844972,139.34,139.23,0.25]
[1641735106465,26.07844972,139.34,139.23,3.25]
[1641735106865,26.07844972,139.34,139.28,10.7709]
[1641735107168,23.2483,139.39,139.28,10.7709]
[1641735108168,22.70218316,139.38,139.28,10.7709]
[1641735109467,137.03682586,139.42,139.28,10.7709]
[1641735109668,124.4883,139.42,139.29,0.25]
[1641735109869,11.410246,139.41,139.34,10.7663]
[1641735110069,22.5616,139.4,139.3,35.8877]
[1641735110270,11.411883,139.39,139.3,35.8877]
[1641735110468,41.29846249,139.39,139.29,0.25]
[1641735110668,29.88657949,139.39,139.27,25.04932811]
[1641735111270,29.88657949,139.39,139.28,0.25]
[1641735112674,29.88657949,139.39,139.31,10.7683]
[1641735113172,11.417616,139.38,139.31,10.7683]
[1641735113876,29.88657949,139.39,139.31,10.7683]
[1641735114074,11.417616,139.38,139.31,10.7683]
[1641735114273,22.5616,139.4,139.31,10.1683]
[1641735114474,22.5616,139.4,139.28,0.25]
[1641735114475,101.854,139.42,139.32,0.25]
[1641735115074,23.5489,139.45,139.32,0.25]
[1641735115277,23.5489,139.45,139.35,13.07536453]
[1641735115475,23.5489,139.45,139.36,0.25]
[1641735115875,23.5489,139.45,139.31,96.8915]
[1641735116076,23.5489,139.45,139.32,3.0]
[1641735116376,23.5489,139.45,139.36,35.8732]
[1641735116577,11.411886,139.44,139.38,10.7632]
[1641735116778,31.65079778,139.43,139.38,10.7632]
[1641735117981,31.65079778,139.43,139.37,10.7642]
[1641735119580,8.387362,139.42,139.37,10.7642]
[1641735119781,31.65079778,139.43,139.37,10.7642]
[1641735119981,8.884984,139.42,139.37,10.7642]
[1641735120185,20.302605,139.42,139.37,10.7642]
[1641735122382,28.72733,139.42,139.37,10.7642]
[1641735122585,31.65079778,139.43,139.37,10.7642]
[1641735122783,20.299666,139.42,139.37,10.7642]
[1641735123384,11.415968,139.42,139.37,10.7642]
[1641735123584,15.401464,139.42,139.37,10.7642]
[1641735123785,15.402283,139.42,139.37,10.7642]
[1641735123995,13.19761186,139.42,139.37,10.7642]
[1641735124185,11.416786,139.41,139.37,10.7642]
[1641735124387,31.65079778,139.43,139.36,10.7651]
[1641735124586,11.416786,139.42,139.36,10.7651]
[1641735130194,20.259606,139.42,139.36,10.7651]
[1641735132398,20.259606,139.42,139.34,10.7663]
[1641735132596,20.259606,139.42,139.31,72.1332]
[1641735132597,37.903182,139.42,139.31,72.1332]
[1641735132795,37.903182,139.42,139.25,4.03489955]
[1641735132796,73.99130786,139.42,139.25,4.03489955]
[1641735132996,36.08812586,139.42,139.27,98.4193]
[1641735133196,37.903182,139.41,139.27,98.4193]
[1641735133400,28.37780805,139.4,139.3,10.7697]
[1641735133798,26.864498,139.39,139.3,10.7697]
[1641735134498,26.864498,139.39,139.27,98.4193]
[1641735134699,1.78082586,139.39,139.29,10.7706]
[1641735135230,19.558098,139.38,139.29,10.7706]
[1641735135397,15.447686,139.38,139.29,10.7706]
[1641735135599,24.5502783,139.37,139.29,10.7706]
[1641735135798,10.7709,139.35,139.29,10.7706]
[1641735136001,11.420088,139.36,139.28,11.0214]
[1641735136197,24.5502783,139.37,139.28,11.0214]
[1641735136400,11.420088,139.36,139.28,11.0214]
[1641735136601,4.193374,139.36,139.28,11.0214]
[1641735136800,11.417602,139.35,139.28,11.0214]
[1641735136998,28.81015608,139.34,139.28,11.0214]
[1641735139101,1.78082586,139.38,139.28,11.0214]
[1641735139302,10.7707,139.35,139.28,11.0214]
[1641735139702,22.5702,139.37,139.28,11.0214]
[1641735140207,31.62172969,139.36,139.28,11.0214]
[1641735140806,31.62172969,139.36,139.28,10.7714]
[1641735141506,42.39172969,139.36,139.28,10.7714]
[1641735141709,31.62172969,139.36,139.28,10.7714]
[1641735142507,22.5702,139.37,139.28,10.7714]
[1641735142735,22.8657,139.4,139.28,10.7714]
[1641735142939,46.6705,139.4,139.29,0.25]
[1641735143134,46.6705,139.4,139.34,10.7664]
[1641735143436,23.43335599,139.4,139.31,35.8878]
[1641735143637,22.182746,139.39,139.29,0.25]
[1641735143834,10.7676,139.39,139.29,0.25]
[1641735144036,10.7676,139.39,139.27,24.7077]
[1641735144239,22.78896,139.38,139.29,10.7707]
[1641735144436,22.78896,139.38,139.26,23.9284]
[1641735144635,22.78896,139.38,139.26,48.872]
[1641735144636,35.9052,139.38,139.26,48.872]
[1641735144838,26.47200265,139.37,139.26,48.872]
[1641735145437,26.47200265,139.37,139.29,10.7702]
[1641735145639,10.77,139.36,139.26,84.7717]
[1641735145838,26.47200265,139.37,139.26,48.872]
[1641735146038,24.8349,139.39,139.27,3.25]
[1641735146439,24.8349,139.39,139.33,10.7676]
[1641735146640,83.6616,139.41,139.33,16.4666]
[1641735146839,72.8952,139.41,139.33,16.4666]
[1641735147039,72.8952,139.41,139.33,24.50963382]
[1641735147339,27.94473438,139.44,139.33,24.50963382]
[1641735147539,8.879874,139.43,139.33,24.50963382]
[1641735147742,10.7659,139.42,139.33,24.50963382]
[1641735149243,26.18525948,139.41,139.33,16.4666]
[1641735149443,26.18525948,139.41,139.33,10.7676]
[1641735149644,36.95165948,139.41,139.33,10.7676]
[1641735151852,17.485389,139.4,139.33,10.7676]
[1641735152149,26.487582,139.4,139.29,72.8949]
[1641735152353,77.0,139.39,139.19,35.67]
[1641735152751,30.2393053,139.38,139.2,65.75101003]
[1641735152950,30.2393053,139.38,139.26,2.03150159]
[1641735153151,29.58961996,139.35,139.3,10.7696]
[1641735153551,99.85933905,139.39,139.3,10.7696]
[1641735153753,11.423211,139.38,139.3,10.7696]
[1641735154353,22.191511,139.38,139.3,10.7696]
[1641735154555,25.2134691,139.37,139.3,10.7696]
[1641735157165,97.9733,139.39,139.3,10.7696]
[1641735157367,108.7407,139.39,139.3,10.7696]
[1641735157667,1.88603905,139.4,139.31,0.25]
[1641735158067,1.88603905,139.4,139.31,3.25]
[1641735158267,27.13111452,139.4,139.31,3.25]
[1641735158666,27.13111452,139.4,139.31,0.25]
[1641735158866,1.88603905,139.41,139.31,0.25]
[1641735159070,72.3845,139.42,139.36,10.7651]
[1641735159269,1.88603905,139.43,139.36,10.7651]
[1641735160068,26.0010023,139.43,139.36,10.7651]
[1641735163400,24.11496325,139.43,139.36,10.7651]
[1641735166303,1.88603905,139.44,139.36,10.7651]
[1641735166505,1.88603905,139.44,139.37,0.25]
[1641735166705,1.88603905,139.44,139.4,10.7594]
[1641735167105,23.6126,139.46,139.4,10.7594]
[1641735167706,23.1126,139.46,139.4,10.7594]
[1641735167907,24.99863905,139.46,139.4,10.7594]
[1641735168106,1.88603905,139.46,139.4,10.7594]
[1641735168507,75.14383905,139.47,139.4,10.7594]
[1641735169208,30.12116324,139.46,139.4,10.7594]
[1641735169421,4.12013015,139.35,139.27,74.96414227]
[1641735169608,4.12013015,139.35,139.21,535.22599093]
[1641735169609,6.06439994,139.34,139.21,535.22599093]
[1641735170211,20.17097275,139.33,139.21,557.89267294]
[1641735170408,96.51117275,139.33,139.21,557.89267294]
[1641735170609,98.29199861,139.33,139.21,22.66668201]
[1641735171410,98.29199861,139.33,139.15,31.40229582]
[1641735171611,46.1478,139.32,139.15,23.4445]
[1641735171809,10.7775,139.26,139.14,73.5065]
[1641735172409,26.23737123,139.25,139.15,31.89143393]
[1641735172811,10.7794,139.24,139.15,31.89143393]
[1641735173010,24.9547,139.3,139.15,31.89143393]
[1641735173812,30.69709041,139.29,139.16,0.25]
[1641735174513,74.7328,139.28,139.16,0.25]
[1641735174913,10.7772,139.26,139.16,0.25]
[1641735175116,30.37224558,139.26,139.16,0.25]
[1641735176521,30.37224558,139.26,139.15,31.89143393]
[1641735177322,10.7772,139.26,139.15,31.89143393]
[1641735177526,10.7764,139.27,139.16,0.26]
[1641735177824,74.7328,139.28,139.16,0.26]
[1641735178022,74.7328,139.28,139.16,0.51]
[1641735178422,103.32392269,139.28,139.16,0.51]
[1641735178624,114.09942269,139.28,139.16,0.25]
[1641735182454,85.5083,139.28,139.16,0.51]
[1641735183353,24.9547,139.3,139.16,0.51]
[1641735183753,23.88434104,139.29,139.16,0.58]
[1641735184756,34.65954104,139.29,139.16,0.58]
[1641735186256,34.65954104,139.29,139.16,0.33]
[1641735187055,23.88434104,139.29,139.16,0.33]
[1641735187463,23.88434104,139.29,139.16,0.58]
[1641735188758,35.7287,139.3,139.16,0.58]
[1641735189159,35.7287,139.3,139.16,3.58]
[1641735189566,77.3511,139.31,139.16,3.58]
[1641735189765,77.3511,139.31,139.17,1.78082586]
[1641735189961,77.3511,139.31,139.18,30.25428733]
[1641735190162,77.3511,139.31,139.19,0.07]
[1641735191763,60.5774,139.34,139.19,0.07]
[1641735191963,77.00223015,139.35,139.2,1.78082586]
[1641735192466,77.00223015,139.35,139.22,0.07]
[1641735192866,108.50992559,139.35,139.22,31.35119319]
[1641735193464,77.00223015,139.35,139.23,3.26]
[1641735193865,4.12013015,139.35,139.24,1.78082586]
[1641735194271,4.12013015,139.35,139.25,0.26]
[1641735194472,4.12013015,139.35,139.24,0.25]
[1641735195079,22.5626,139.46,139.35,4.12013015]
[1641735195278,109.9349,139.49,139.35,9.57513015]
[1641735195474,12.21009683,139.56,139.36,2.03082586]
[1641735195475,8.880906,139.48,139.36,2.03082586]
[1641735195674,75.7885,139.55,139.36,2.29082586]
[1641735195872,75.7885,139.55,139.37,1.78082586]
[1641735195873,103.5542,139.54,139.37,1.78082586]
[1641735196074,22.9499377,139.49,139.37,26.18208797]
[1641735196274,22.9499377,139.49,139.38,0.25]
[1641735196475,103.5542,139.54,139.38,6.709]
[1641735197273,103.5542,139.54,139.38,6.449]
[1641735197473,31.91914431,139.49,139.38,0.25]
[1641735197874,31.91914431,139.49,139.37,24.40126211]
[1641735198074,31.91914431,139.49,139.38,0.25]
[1641735198277,74.8362,139.48,139.35,4.12013015]
[1641735198876,14.082276,139.47,139.35,4.12013015]
[1641735199176,18.37299168,139.46,139.35,4.02562671]
[1641735199776,10.7629,139.45,139.36,0.25]
[1641735199977,10.7629,139.45,139.35,4.02562671]
[1641735200980,24.928618,139.44,139.35,4.02562671]
[1641735201279,10.7629,139.45,139.35,4.02562671]
[1641735201478,10.7629,139.45,139.36,0.25]
[1641735201678,18.37299168,139.46,139.36,0.25]
[1641735202580,23.371,139.47,139.36,0.25]
[1641735202785,23.371,139.47,139.36,5.907]
[1641735203584,23.371,139.47,139.37,25.55374798]
[1641735203786,44.67254122,139.47,139.37,25.55374798]
[1641735204885,23.371,139.47,139.38,0.25]
[1641735205287,23.371,139.47,139.37,25.55374798]
[1641735205985,23.371,139.47,139.38,0.25]
[1641735208212,74.8362,139.48,139.38,10.71982586]
[1641735208614,74.8362,139.48,139.39,0.26]
[1641735209816,74.8362,139.48,139.39,3.26]
[1641735210017,74.8362,139.48,139.4,0.25]
[1641735210617,23.7683,139.53,139.41,1.78082586]
[1641735210816,79.5575,139.52,139.42,22.71716081]
[1641735211017,79.5575,139.52,139.42,23.22716081]
[1641735211220,77.5575,139.52,139.43,1.78082586]
[1641735211428,77.5575,139.52,139.44,0.25]
[1641735212220,77.5575,139.52,139.44,7.159]
[1641735212420,94.7,139.55,139.45,0.26]
[1641735212621,94.7,139.55,139.45,5.04082586]
[1641735212828,94.7,139.55,139.46,1.78082586]
[1641735213027,94.7,139.55,139.47,0.26]
[1641735213226,94.7,139.55,139.47,28.9915891]
[1641735213532,94.7,139.55,139.48,0.25]
[1641735213932,94.7,139.55,139.49,1.78082586]
[1641735214328,94.7,139.55,139.5,0.51]
[1641735214527,94.7,139.55,139.51,22.71530685]
[1641735215028,94.7,139.55,139.52,0.51]
[1641735215329,94.7,139.55,139.51,22.71530685]
[1641735215631,115.67702698,139.6,139.43,133.55306109]
[1641735215830,115.67702698,139.6,139.45,1.78082586]
[1641735216029,94.7,139.6,139.45,1.78082586]
[1641735216430,78.1574,139.59,139.45,1.78082586]
[1641735216629,78.1574,139.59,139.45,1.85082586]
[1641735216830,78.1574,139.59,139.46,0.26]
[1641735217029,78.1574,139.59,139.47,0.07]
[1641735218029,101.73900151,139.59,139.47,0.07]
[1641735218729,113.26499753,139.59,139.47,0.07]
[1641735218928,124.01729753,139.59,139.47,0.07]
[1641735220531,124.01729753,139.59,139.47,0.32]
[1641735221133,112.49130151,139.59,139.47,0.32]
[1641735222734,25.954171,139.58,139.47,0.07]
[1641735222934,78.482071,139.58,139.47,0.07]
[1641735223134,10.7583,139.53,139.47,0.07]
[1641735223335,79.5554,139.52,139.47,0.07]
[1641735223538,79.5554,139.52,139.36,0.07]
[1641735223735,26.71053448,139.51,139.36,0.07]
[1641735223935,26.71053448,139.51,139.36,1.85082586]
[1641735224135,26.71053448,139.51,139.37,1.78082586]
[1641735224336,37.46963448,139.51,139.38,25.83967181]
[1641735224537,37.46963448,139.51,139.39,0.26]
[1641735224836,37.46963448,139.51,139.39,0.51]
[1641735225038,37.46963448,139.51,139.39,2.29082586]
[1641735225438,37.46963448,139.51,139.39,2.03082586]
[1641735227140,37.46963448,139.51,139.39,0.25]
[1641735227340,20.341965,139.5,139.38,25.83967181]
[1641735227542,10.7626,139.46,139.38,25.83967181]
[1641735229245,10.7612,139.48,139.38,25.83967181]
[1641735229444,10.7612,139.48,139.39,0.25]
[1641735230046,10.7612,139.48,139.38,25.83967181]
[1641735232147,10.7612,139.48,139.39,0.25]
[1641735234670,10.7596,139.5,139.39,0.25]
[1641735234870,46.3443,139.51,139.39,2.03082586]
[1641735235070,46.3443,139.51,139.39,2.29082586]
[1641735235872,79.5554,139.52,139.39,2.29082586]
[1641735236273,79.5554,139.52,139.39,9.2827953]
[1641735236471,79.5554,139.52,139.4,3.0]
[1641735236671,79.5554,139.52,139.41,29.5210061]
[1641735236871,79.5554,139.52,139.41,31.81183196]
[1641735237072,79.5554,139.52,139.42,1.78082586]
[1641735237273,79.5554,139.52,139.42,2.04082586]
[1641735237472,25.95603089,139.51,139.43,0.25]
[1641735237672,79.5554,139.52,139.43,0.25]
[1641735238072,79.5554,139.52,139.43,2.03082586]
[1641735238573,79.5554,139.52,139.44,24.53539626]
[1641735238975,79.5554,139.52,139.45,0.25]
[1641735239974,10.7586,139.51,139.44,24.53539626]
[1641735240177,79.5554,139.52,139.44,24.53539626]
[1641735240576,79.5554,139.52,139.41,1.78082586]
[1641735240776,104.4571,139.52,139.36,75.7702995]
[1641735240981,24.1037,139.51,139.37,1.78082586]
[1641735241181,10.7603,139.48,139.37,1.78082586]
[1641735241385,74.9457,139.47,139.37,1.78082586]
[1641735241584,74.9457,139.47,139.38,23.18424046]
[1641735241981,74.9457,139.47,139.38,24.96506632]
[1641735242383,74.9457,139.47,139.39,0.51]
[1641735242984,74.9457,139.47,139.39,2.29082586]
[1641735245286,22.8569,139.5,139.39,2.29082586]
[1641735246089,77.799,139.5,139.39,2.29082586]
[1641735246288,5.84118647,139.54,139.39,14.09613382]
[1641735246492,4.04918647,139.54,139.41,27.05721277]
[1641735246691,4.04918647,139.54,139.42,1.792]
[1641735246890,4.04918647,139.54,139.42,4.08282586]
[1641735247090,83.42168647,139.56,139.43,1.78082586]
[1641735247293,83.42168647,139.56,139.45,31.0162212]
[1641735247489,83.42168647,139.56,139.46,0.25]
[1641735248093,83.42168647,139.56,139.46,0.51]
[1641735250693,83.42168647,139.56,139.4,1.78082586]
[1641735250893,22.6411,139.55,139.41,0.51]
[1641735251195,1.792,139.54,139.41,0.51]
[1641735251394,10.7574,139.52,139.41,11.2672]
[1641735251596,21.65227136,139.51,139.41,37.41121547]
[1641735251792,21.65227136,139.51,139.42,0.26]
[1641735251993,10.7574,139.52,139.42,0.26]
[1641735252396,73.3773,139.51,139.42,0.26]
[1641735252593,73.3773,139.51,139.42,11.0171]
[1641735252994,73.3773,139.51,139.43,0.25]
[1641735253893,73.3773,139.51,139.44,25.89104781]
[1641735254699,73.3773,139.51,139.45,0.25]
[1641735254898,73.3773,139.51,139.45,11.2649]
[1641735256009,73.3773,139.51,139.45,11.0049]
[1641735256207,73.3773,139.51,139.45,0.25]
[1641735256408,73.3773,139.51,139.44,25.89104781]
[1641735258211,73.3773,139.51,139.39,46.4112]
[1641735258412,73.3773,139.51,139.4,0.51]
[1641735258612,73.3773,139.51,139.43,10.7565]
[1641735259039,73.3773,139.51,139.44,0.25]
[1641735260447,73.3773,139.51,139.39,1.78082586]
[1641735260647,73.3773,139.51,139.36,73.4535]
[1641735260648,25.5972,139.5,139.33,125.1554]
[1641735260848,25.5972,139.5,139.35,11.48111967]
[1641735261447,23.99564313,139.49,139.36,22.91347121]
[1641735261646,10.7612,139.47,139.37,10.7611]
[1641735261852,10.7612,139.47,139.37,11.0111]
[1641735262849,10.7612,139.47,139.37,0.25]
[1641735263250,77.0949,139.46,139.37,0.25]
[1641735263450,10.7626,139.45,139.37,0.25]
[1641735264052,10.7626,139.45,139.37,0.51]
[1641735264250,10.7626,139.45,139.37,0.25]
[1641735264453,10.7626,139.45,139.37,3.25]
[1641735264850,10.7626,139.45,139.37,0.25]
[1641735267057,10.7626,139.45,139.36,33.67597121]
[1641735267058,10.7626,139.45,139.35,4.02562671]
[1641735267256,1.793,139.44,139.35,4.02562671]
[1641735267456,10.766,139.4,139.35,4.02562671]
[1641735271160,12.5585,139.41,139.35,4.02562671]
[1641735271360,1.793,139.43,139.36,0.25]
[1641735271564,48.7022,139.45,139.36,0.25]
[1641735271761,48.7022,139.45,139.36,9.012]
[1641735272161,1.793,139.46,139.36,9.012]
[1641735272365,98.74918647,139.48,139.36,19.7743]
[1641735272662,26.90434508,139.48,139.37,29.50216967]
[1641735272863,22.85515861,139.48,139.37,29.50216967]
[1641735273062,22.85515861,139.48,139.38,0.25]
[1641735273262,10.7607,139.47,139.38,0.25]
[1641735273463,1.793,139.51,139.4,10.76]
[1641735273664,124.0562,139.53,139.4,10.76]
[1641735273865,124.0562,139.53,139.41,0.51]
[1641735274465,163.87007636,139.53,139.45,10.7564]
[1641735275467,163.87007636,139.53,139.45,41.80608224]
[1641735276866,163.87007636,139.53,139.45,31.74590524]
[1641735277067,163.87007636,139.53,139.45,31.04968224]
[1641735279596,134.8123,139.53,139.45,31.04968224]
[1641735279795,124.0562,139.53,139.45,41.80618224]
[1641735280000,77.3921,139.53,139.46,0.25]
[1641735280798,77.3921,139.53,139.48,10.7544]
[1641735281001,94.7,139.54,139.48,10.7544]
[1641735282905,94.7,139.54,139.48,41.38650832]
[1641735284505,94.7,139.54,139.5,10.7524]
[1641735284705,52.71278647,139.56,139.5,6.837]
[1641735284905,4.04918647,139.56,139.5,6.837]
[1641735285109,4.04918647,139.56,139.51,24.08907701]
[1641735285706,4.04918647,139.59,139.51,34.84087701]
[1641735285908,4.04918647,139.59,139.57,19.41786983]
[1641735286105,6.03593862,139.62,139.58,33.0]
[1641735286305,6.03593862,139.62,139.58,38.03082586]
[1641735286506,4.04614628,139.62,139.58,38.03082586]
[1641735286706,4.04614628,139.62,139.59,24.98428396]
[1641735286907,4.04614628,139.62,139.6,10.9922]
[1641735287105,4.04614628,139.62,139.6,10.7422]
[1641735287709,6.03593862,139.65,139.6,10.7422]
[1641735287907,25.85761877,139.67,139.6,10.7422]
[1641735288106,1.79,139.66,139.57,19.41786983]
[1641735288507,11.434839,139.65,139.57,19.41786983]
[1641735288706,1.79,139.64,139.57,19.41786983]
[1641735288907,25.13526741,139.63,139.57,19.41786983]
[1641735289908,1.79,139.62,139.57,19.41786983]
[1641735290607,10.7503,139.61,139.57,19.41786983]
[1641735291208,25.09667557,139.6,139.57,19.41786983]
[1641735291408,7.85539994,139.59,139.57,19.41786983]
[1641735291609,19.29847594,139.59,139.57,19.41786983]
[1641735291809,18.60839994,139.59,139.57,19.41786983]
[1641735292608,7.85539994,139.59,139.57,19.41786983]
[1641735292812,38.0,139.58,139.52,10.7505]
[1641735293409,38.0,139.58,139.53,0.25]
[1641735293608,38.0,139.58,139.52,33.58076475]
[1641735294210,38.0,139.58,139.48,35.8366]
[1641735294411,38.0,139.58,139.5,10.752]
[1641735295414,74.76569944,139.58,139.48,34.14538187]
[1641735295714,76.55669944,139.58,139.48,34.14538187]
[1641735296113,18.269928,139.57,139.44,35.8478]
[1641735296312,10.7562,139.54,139.46,10.7556]
[1641735296551,1.792,139.56,139.46,10.7556]
[1641735296712,84.3015,139.57,139.46,10.7556]
[1641735297113,11.442211,139.56,139.47,27.40395759]
[1641735297315,11.442211,139.56,139.47,38.15885759]
[1641735297316,22.197011,139.56,139.47,38.15885759]
[1641735297513,22.197011,139.56,139.48,0.25]
[1641735297712,10.7548,139.56,139.48,0.25]
[1641735297914,28.32822302,139.55,139.48,0.25]
[1641735298116,28.32822302,139.55,139.47,27.40395759]
[1641735298518,1.791,139.56,139.47,27.40395759]
[1641735298717,10.755,139.55,139.48,0.25]
[1641735298918,50.462289,139.57,139.48,0.25]
[1641735299619,48.4477,139.57,139.48,0.25]
[1641735299818,48.4477,139.57,139.48,11.004]
[1641735301619,50.462289,139.57,139.48,11.004]
[1641735302922,48.4477,139.57,139.48,11.004]
[1641735303424,2.014589,139.57,139.49,0.26]
[1641735303622,2.014589,139.57,139.49,36.0949]
[1641735303921,2.014589,139.57,139.5,31.79743052]
[1641735304121,78.441089,139.59,139.5,31.79743052]
[1641735304321,78.441089,139.59,139.51,0.26]
[1641735304922,78.441089,139.59,139.54,31.05954498]
[1641735305523,78.441089,139.59,139.5,0.25]
[1641735305823,89.192889,139.59,139.49,10.7534]
[1641735306025,1.791,139.58,139.45,1.78082586]
[1641735306224,48.9372,139.57,139.4,1.85333811]
[1641735306426,1.792,139.56,139.41,1.78082586]
[1641735306624,32.07535738,139.56,139.41,26.27771159]
[1641735306826,2.014589,139.54,139.41,26.27771159]
[1641735307224,10.7565,139.53,139.45,10.7559]
[1641735307425,10.7565,139.53,139.46,23.70826658]
[1641735307626,10.7565,139.53,139.46,23.96826658]
[1641735307923,10.7565,139.53,139.47,0.25]
[1641735308529,77.4811,139.54,139.47,0.25]
[1641735308930,79.495689,139.54,139.47,0.25]
[1641735309629,90.251589,139.54,139.47,0.25]
[1641735311033,115.23468708,139.54,139.47,0.25]
[1641735311859,2.014589,139.53,139.47,0.25]
[1641735312059,10.7579,139.51,139.47,0.25]
[1641735312260,2.014589,139.53,139.47,0.25]
[1641735312460,2.014589,139.53,139.47,2.03082586]
[1641735312863,2.014589,139.53,139.48,0.26]
[1641735313062,2.014589,139.53,139.5,10.7514]
[1641735313262,2.014589,139.53,139.51,28.03375284]
[1641735313462,2.014589,139.56,139.51,28.28375284]
[1641735314062,2.014589,139.57,139.51,28.28375284]
[1641735314462,2.014589,139.57,139.51,39.03625284]
[1641735314662,2.014589,139.57,139.51,28.28375284]
[1641735314862,2.014589,139.57,139.46,35.8454]
[1641735315061,2.014589,139.57,139.46,37.62622586]
[1641735315261,2.014589,139.57,139.47,0.26]
[1641735315462,2.014589,139.55,139.47,0.26]
[1641735315662,2.014589,139.55,139.47,11.0162]
[1641735315864,2.014589,139.55,139.47,34.11227211]
[1641735316364,29.35465523,139.54,139.44,1.78082586]
[1641735316763,79.8683,139.53,139.4,9.3372485]
[1641735317065,3.806589,139.52,139.39,3.70416397]
[1641735317262,27.00125623,139.51,139.4,24.72106674]
[1641735317462,27.00125623,139.51,139.41,0.26]
[1641735317663,2.014589,139.5,139.4,24.72106674]
[1641735318062,10.7601,139.49,139.42,10.76]
[1641735318764,10.7601,139.49,139.43,0.25]
[1641735319165,10.7601,139.49,139.43,26.98593322]
[1641735320166,10.7601,139.49,139.43,0.25]
[1641735320567,10.7601,139.49,139.41,10.761]
[1641735320770,10.7601,139.49,139.42,0.25]
[1641735321172,10.7601,139.49,139.42,23.74989974]
[1641735321369,12.774689,139.49,139.42,23.74989974]
[1641735321770,12.774689,139.49,139.42,34.50989974]
[1641735322070,10.7601,139.49,139.42,10.76]
[1641735322271,12.5521,139.49,139.36,1.85333811]
[1641735322471,73.3099,139.48,139.36,1.85333811]
[1641735322673,10.7628,139.45,139.32,3.63416397]
[1641735322872,10.7628,139.45,139.35,35.8758]
[1641735323072,2.014589,139.46,139.36,24.08695293]
[1641735323272,2.014589,139.46,139.37,0.07]
[1641735323471,2.014589,139.47,139.37,0.32]
[1641735323674,2.014589,139.47,139.37,2.10082586]
[1641735323972,2.014589,139.47,139.42,10.7597]
[1641735324175,73.3099,139.48,139.42,10.7597]